[Event "Chessable English Open-ch 2022"]
[Site "Kenilwoth"]
[Date "2022.05.19"]
[Round "2.13"]
[White "Shearsby, Jude"]
[Black "Duncan, Patrick C M"]
[Result "1/2-1/2"]
[ECO "B12"]
[WhiteElo "1849"]
[BlackElo "2013"]
[Annotator "TA"]
[PlyCount "83"]
[EventDate "2022.05.18"]
[EventType "swiss"]
[EventCountry "ENG"]
[SourceTitle "playchess.com"]
[Source "ChessBase"]
[SourceQuality "1"]
[TimeControl "5400+30"]

{[%evp 11,83,6,12,-10,17,11,22,18,23,0,0,-7,-10,-10,-10,-13,-14,-14,-14,-6,-9,-12,-12,-16,-13,-17,-10,-26,-16,-35,-4,-25,0,0,0,0,0,0,0,0,0,0,0,0,0,0,0,-5,-5,-6,0,-29,-7,-7,-7,-32,-32,-33,-33,-33,-33,-33,0,-33,0,0,0,0,0,0,0,0,0,0]} 1. e4 {[%emt 0:00:20]} c6 {[%emt 0:00:07]} 2. d4 {[%emt 0:00:06]} d5 {[%emt 0:00:06]} 3. e5 {[%emt 0:00:06]} Bf5 {[%emt 0:00:10]} 4. h4 {[%emt 0:00:25]} h5 {[%emt 0:00:32]} 5. Bd3 {[%emt 0:00:19]} Bxd3 {[%emt 0:00:31]} 6. Qxd3 {[%emt 0:00:09]} e6 {[%emt 0:00:41]} 7. Nd2 {[%emt 0:00:44] B12: Caro-Kann: Advance Variation.} Nh6 {[%emt 0:11:10]} 8. Ne2 {[%emt 0:05:25]} Nf5 {[%emt 0:01:08]} 9. Nf3 {[%emt 0:00:29]} Qa5+ {[%emt 0:03:12] [#]} 10. Bd2 $146 {[%emt 0:02:27]} ({Predecessor:} 10. c3 Qa6 11. Qc2 Nd7 12. O-O Be7 13. g3 c5 14. Be3 Rc8 15. Nf4 g6 16. Qd2 cxd4 17. cxd4 {1-0 (59) Ginzburg,M-Fernandez Murga,R (2255) Buenos Aires 1990}) 10... Qa6 {[%emt 0:00:38]} 11. Nf4 {[%emt 0:03:25]} c5 {[%emt 0:04:38]} 12. c3 {[%emt 0:02:44]} Qxd3 {[%emt 0:01:25]} 13. Nxd3 {[%emt 0:00:06]} cxd4 {[%emt 0:01:41]} 14. Nxd4 {[%emt 0:02:40]} Nxd4 {[%emt 0:00:40]} 15. cxd4 {[%emt 0:00:12]} Nc6 {[%emt 1:11:21]} 16. Be3 {[%emt 0:01:08]} Be7 {[%emt 0:00:00]} 17. Kd2 {[%emt 0:02:11]} Kd7 {[%emt 0:00:00]} 18. g3 {[%emt 0:01:40]} Rhc8 {[%emt 0:00:00]} 19. Rag1 {[%emt 0:03:42]} g6 {[%emt 0:00:00]} 20. f3 {[%emt 0:02:01]} Rh8 {[%emt 0:00:00]} 21. Bf2 {[%emt 0:03:09]} Nb4 {[%emt 0:00:00]} (21... a5 {seems wilder.} 22. a4 Nb4 23. Ra1 b5) 22. Nxb4 {[%emt 0:01:40]} Bxb4+ {[%emt 0:00:00]} 23. Kd3 {[%emt 0:00:03]} Ba5 {[%emt 0:00:00]} 24. Rc1 {[%emt 0:00:49]} Rac8 {[%emt 0:00:00]} 25. Be3 {[%emt 0:01:43]} Rxc1 {[%emt 0:00:00]} 26. Rxc1 {[%emt 0:00:09]} Rc8 {[%emt 0:00:00]} 27. Rxc8 {[%emt 0:00:44]} Kxc8 $11 {[%emt 0:00:00][%mdl 4096] Endgame KB-KB} 28. Bd2 {[%emt 0:00:20] Inhibits Be1.} Bd8 {[%emt 0:00:00]} 29. Ke3 {[%emt 0:03:08]} Kd7 {[%emt 0:00:00]} 30. b4 {[%emt 0:01:23]} b5 {[%emt 0:00:00]} (30... Kc6 $5) 31. Be1 {[%emt 0:00:59]} g5 {[%emt 0:00:00]} 32. hxg5 {[%emt 0:06:04]} Bxg5+ {[%emt 0:00:00]} 33. f4 {[%emt 0:00:10]} Bh6 {[%emt 0:00:00]} 34. Kf3 {[%emt 0:00:32]} Ke7 {[%emt 0:00:00]} 35. g4 {[%emt 0:01:00]} hxg4+ {[%emt 0:00:00]} 36. Kxg4 {[%emt 0:00:05]} Kf8 {[%emt 0:00:00]} 37. Bh4 {[%emt 0:02:07]} Kg8 {[%emt 0:00:00]} 38. Bg5 {[%emt 0:02:19] The position is equal.} Bf8 {[%emt 0:00:00]} 39. a3 {[%emt 0:00:01]} Kh7 {[%emt 0:00:00]} 40. Kh5 {[%emt 0:00:23]} Bg7 {[%emt 0:00:00]} 41. Bf6 {[%emt 0:00:59] [#] Black must now prevent Bxg7.} Bh6 {[%emt 0:00:00]} 42. Bg5 {[%emt 0:00:20] Weighted Error Value: White=0.07 (flawless) /Black=0.06 (flawless)} 1/2-1/2

[Event "Chessable English Open-ch 2022"]
[Site "Kenilwoth"]
[Date "2022.05.19"]
[Round "2.14"]
[White "Ireland, David J"]
[Black "Watson, Jacob"]
[Result "1-0"]
[ECO "D20"]
[WhiteElo "2000"]
[BlackElo "1922"]
[Annotator "TA"]
[PlyCount "103"]
[EventDate "2022.05.18"]
[EventType "swiss"]
[EventCountry "ENG"]
[SourceTitle "playchess.com"]
[Source "ChessBase"]
[SourceQuality "1"]
[TimeControl "5400+30"]

{[%evp 10,103,-18,-11,20,15,41,8,20,0,85,80,103,98,90,91,92,89,145,142,139,110,143,156,177,165,200,177,175,193,182,127,150,156,164,144,172,172,186,199,210,202,383,213,218,218,220,218,200,207,232,224,287,268,337,206,234,193,481,466,480,464,640,620,773,491,897,893,861,772,6445,6422,29958,29958,29966,29967,29976,29975,29971,29973,29981,29973,29980,29981,29990,29985,29986,29986,29986,29987,29987,29988,29990,29991,29991,29990]} 1. d4 {[%emt 0:02:21]} d5 {[%emt 0:00:11][%cal Bd7d5,Bd5c4][%mdl 32]} 2. c4 {[%emt 0:00:09]} dxc4 {[%emt 0:00:09]} 3. e4 {[%emt 0:00:43]} e5 {[%emt 0:00:36]} 4. Nf3 {[%emt 0:00:31]} exd4 {[%emt 0:01:03]} 5. Qxd4 {[%emt 0:02:37]} Qxd4 {[%emt 0:06:35]} 6. Nxd4 {[%emt 0:00:04]} a6 {[%emt 0:11:41] D20: Queen's Gambit Accepted: 3 e3 and 3 e4.} 7. Bxc4 {[%emt 0:01:10]} c5 {[%emt 0:00:41]} 8. Ne2 {[%emt 0:03:29]} Nc6 {[%emt 0:02:50] The position is equal.} 9. O-O {[%emt 0:02:34] [#]} Bd6 $146 {[%emt 0:05:20]} (9... Be6 $11 {remains equal.} 10. Bxe6 fxe6) ({Predecessor:} 9... b5 10. Bb3 c4 11. Bd1 Nf6 12. Nec3 Be6 13. Re1 O-O-O 14. Bf4 Bc5 15. e5 Ng4 {0-1 (36) Lunn,M (1905)-Spice,A (2169) England 2010}) 10. Rd1 $16 {[%emt 0:02:44]} Be5 {[%emt 0:02:33]} 11. Nbc3 {[%emt 0:02:21]} Nge7 {[%emt 0:02:46]} 12. Be3 {[%emt 0:02:29]} b6 {[%emt 0:03:20]} 13. f4 {[%emt 0:01:46]} Bxc3 {[%emt 0:02:32]} (13... Bc7 $142) 14. Nxc3 {[%emt 0:02:03]} O-O {[%emt 0:00:30]} 15. h3 {[%emt 0:03:30] Prevents Bg4.} Bb7 {[%emt 0:03:40]} 16. Rd7 {[%emt 0:08:27]} Bc8 {[%emt 0:06:40]} 17. Rc7 {[%emt 0:06:14]} Ra7 {[%emt 0:02:02]} 18. Rxa7 {[%emt 0:01:52]} Nxa7 {[%emt 0:00:03]} 19. Rd1 {[%emt 0:01:08] Prevents Rd8.} Nac6 {[%emt 0:04:46]} 20. a4 {[%emt 0:03:48]} (20. Bf1 $18) 20... Na5 {[%emt 0:15:47]} 21. Be2 {[%emt 0:10:57] White is more active.} Re8 {[%emt 0:03:19]} 22. f5 {[%emt 0:02:47]} Nec6 {[%emt 0:01:46]} 23. Bf4 {[%emt 0:05:12]} Nd4 {[%emt 0:06:09]} 24. Bf1 {[%emt 0:05:17]} Bb7 {[%emt 0:02:29]} 25. Bc7 {[%emt 0:02:52]} Bxe4 $2 {[%emt 0:03:53]} (25... Nab3 {was called for.} 26. Bxb6 a5 27. Bxc5 Nxc5) 26. Bxb6 {[%emt 0:02:49]} (26. Nxe4 $142 Rxe4 27. Bxb6) 26... Bc2 $18 {[%emt 0:02:29] [#] Strongly threatening ...Nab3.} 27. Bxa5 {[%emt 0:03:33]} Bxd1 {[%emt 0:00:06]} 28. Nxd1 {[%emt 0:00:22]} Nxf5 {[%emt 0:00:48]} 29. Kf2 {[%emt 0:02:32]} ({Stronger than} 29. Bxa6 Ra8 30. Bd3 Rxa5 $11) 29... Re6 {[%emt 0:02:10]} 30. Nc3 {[%emt 0:02:07]} Nd4 {[%emt 0:01:34]} 31. Nd5 {[%emt 0:03:20]} Nb3 {[%emt 0:00:52]} 32. Bb6 {[%emt 0:03:37] Hoping for Bc4. This bishop pair is nice.} Re4 {[%emt 0:01:01]} 33. Nc3 {[%emt 0:02:49]} ({Weaker is} 33. Bxa6 Rxa4 34. Bb5 Ra2 $11) 33... Re6 {[%emt 0:00:27]} (33... Rf4+ 34. Ke1 a5) 34. a5 {[%emt 0:00:48]} Rd6 {[%emt 0:01:42]} 35. Ne4 {[%emt 0:01:59] Prevents Rd2+.} Rd4 {[%emt 0:03:44]} 36. Nxc5 {[%emt 0:03:14]} Rd2+ {[%emt 0:00:32]} 37. Kg3 {[%emt 0:00:26]} Rxb2 {[%emt 0:00:29]} (37... Nxa5 $142 38. Bxa5 Rxb2 39. Bxa6 Rc2) 38. Nxb3 {[%emt 0:01:09]} Rxb3+ {[%emt 0:00:05]} 39. Kh2 {[%emt 0:00:16]} Ra3 {[%emt 0:00:32]} 40. Bxa6 {[%emt 0:00:20] Black must now prevent Bb7.} g5 {[%emt 0:00:44]} 41. Bb7 {[%emt 0:00:32] White mates.} Rb3 {[%emt 0:00:36] [#]} 42. a6 $1 {[%emt 0:00:50]} Rxb6 {[%emt 0:01:30] KR-KB} (42... Ra3 43. a7) 43. a7 {[%emt 0:00:10]} Kg7 {[%emt 0:00:10]} 44. a8=Q {[%emt 0:00:18]} h5 {[%emt 0:00:24]} 45. Bf3 {[%emt 0:00:59]} Rh6 {[%emt 0:00:27]} 46. Qa1+ {[%emt 0:00:28]} Kg6 {[%emt 0:00:36]} 47. Be4+ {[%emt 0:00:35]} f5 {[%emt 0:00:09]} 48. Qa6+ {[%emt 0:00:21]} Kg7 {[%emt 0:00:06]} 49. Qb7+ {[%emt 0:00:13]} Kf6 {[%emt 0:00:27]} 50. Qc6+ {[%emt 0:00:19]} Kg7 {[%emt 0:00:04]} 51. Qd7+ {[%emt 0:00:12]} Kf6 {[%emt 0:00:11]} 52. Qxf5+ {[%emt 0:00:10] Weighted Error Value: White=0.19 (very precise) /Black=0.46} 1-0

[Event "Chessable English Open-ch 2022"]
[Site "Kenilwoth"]
[Date "2022.05.19"]
[Round "2.15"]
[White "Zheng, Harry Z"]
[Black "Hepworth, Peter"]
[Result "0-1"]
[ECO "C07"]
[WhiteElo "1915"]
[BlackElo "1843"]
[Annotator "TA"]
[PlyCount "86"]
[EventDate "2022.05.18"]
[EventType "swiss"]
[EventCountry "ENG"]
[SourceTitle "playchess.com"]
[Source "ChessBase"]
[SourceQuality "1"]
[TimeControl "5400+30"]

{[%evp 24,86,43,26,92,64,90,95,120,125,131,79,96,92,87,88,97,89,82,64,106,106,120,99,125,129,123,71,89,73,75,65,68,66,77,59,98,36,58,61,73,45,70,42,48,0,36,35,36,29,37,35,36,36,36,36,36,36,40,37,47,0,0,8,60]} 1. e4 {[%emt 0:00:03]} e6 {[%emt 0:00:03]} 2. d4 {[%emt 0:00:14]} d5 {[%emt 0:00:04]} 3. Nd2 {[%emt 0:00:10]} c5 {[%emt 0:00:11]} 4. exd5 {[%emt 0:00:09]} Qxd5 {[%emt 0:00:07]} 5. Ngf3 {[%emt 0:00:36]} cxd4 {[%emt 0:00:11]} 6. Bc4 {[%emt 0:00:42]} Qd6 {[%emt 0:00:05]} 7. O-O {[%emt 0:02:23]} Nf6 {[%emt 0:00:04]} 8. Nb3 {[%emt 1:30:13]} Nc6 {[%emt 0:00:05]} 9. Nbxd4 {[%emt 0:00:00]} Nxd4 {[%emt 0:00:07]} 10. Nxd4 {[%emt 0:00:00]} Be7 {[%emt 0:00:15]} 11. c3 {[%emt 0:00:00]} O-O {[%emt 0:01:30]} 12. Qf3 {[%emt 0:00:00]} a6 {[%emt 0:02:00]} 13. Re1 {[%emt 0:00:00] [#]} Ra7 $146 {[%emt 0:07:41] C07: French Tarrasch: 3...c5, 4 Ngf3 and 4 exd5 Qxd5.} (13... Qc7 $11 14. Bd3 Rd8) ({Predecessor:} 13... Qc7 14. Bb3 Bd7 15. Bf4 Bd6 16. Bxd6 Qxd6 17. Rad1 Qc7 18. h3 Rad8 19. Qe3 Rfe8 20. Nf3 Bc6 21. Ne5 Be4 {0-1 (31) Ognean,M (2298)-Liang,J (2342) Chess.com INT 2021}) 14. Be3 {[%emt 0:00:00][%cal Od4f5] Nf5! is the strong threat.} b6 {[%emt 0:06:51]} 15. Nc6 {[%emt 0:00:00]} Bb7 {[%emt 0:01:23] White is better.} 16. Nxe7+ {[%emt 0:00:00]} Qxe7 {[%emt 0:00:08]} 17. Qf4 {[%emt 0:00:00]} (17. Qg3 $142) 17... Nd5 {[%emt 0:04:44]} 18. Bxd5 {[%emt 0:00:00]} Bxd5 {[%emt 0:00:07]} 19. Bxb6 {[%emt 0:00:00]} Rb7 {[%emt 0:00:06]} 20. Bd4 {[%emt 0:00:00][%cal Oc3c4]} f6 {[%emt 0:05:18]} 21. Qe3 {[%emt 0:00:00] [#] Strongly threatening Bc5.} Rc8 {[%emt 0:02:13] Prevents Bc5.} 22. b3 {[%emt 0:00:00]} Re8 {[%emt 0:00:22]} 23. Rad1 {[%emt 0:00:00] Hoping for Bc5.} Qf7 {[%emt 0:00:30]} 24. c4 {[%emt 0:00:00]} Bc6 {[%emt 0:00:58]} 25. Qg3 {[%emt 0:00:00]} (25. Bc3 $142) 25... Rd7 {[%emt 0:07:39]} 26. Bc3 {[%emt 0:00:00]} e5 {[%emt 0:02:58]} 27. f3 {[%emt 0:00:00]} Red8 {[%emt 0:01:48]} 28. Rxd7 {[%emt 0:00:00]} Qxd7 {[%emt 0:00:26]} 29. Qf2 {[%emt 0:00:00]} h5 {[%emt 0:11:27]} 30. h4 {[%emt 0:00:00]} (30. Ba5 $16 Re8 31. h3) 30... Kf7 {[%emt 0:02:19]} 31. Ba5 {[%emt 0:00:00][%cal Bc3a5,Ba5b6,Bb6e3][%mdl 32]} Re8 {[%emt 0:01:14]} 32. Bb6 {[%emt 0:00:02]} Qf5 {[%emt 0:02:33]} 33. Qc5 {[%emt 0:04:42]} Re6 {[%emt 0:00:21]} 34. Qf2 {[%emt 0:04:18]} (34. Bc7 $14 {is superior.}) 34... Rd6 {[%emt 0:06:30]} 35. Be3 {[%emt 0:00:14]} (35. Ba5 {is more complex.} Qf4 36. Qc5 Re6 37. Qa7+) 35... Rd3 {[%emt 0:06:33]} 36. Kh2 {[%emt 0:01:46]} Qe6 {[%emt 0:04:52]} 37. Re2 {[%emt 0:01:40]} Qd6 {[%emt 0:00:08]} 38. Bc5 {[%emt 0:00:12]} Qc7 {[%emt 0:00:14]} 39. Bb6 {[%emt 0:00:19]} Qd7 {[%emt 0:00:34]} 40. Ba5 {[%emt 0:01:34]} Qd6 {[%emt 0:00:51]} 41. Qa7+ {[%emt 0:00:17]} Kg6 {[%emt 0:00:17] [#] And now ...e4+ would win.} 42. Qc7 {[%emt 0:00:29]} ({Wrong is} 42. Qxa6 $2 e4+ 43. g3 Rxf3 $19) 42... Qd4 {[%emt 0:12:34]} 43. Be1 {[%emt 0:00:56]} Rd1 {[%emt 0:07:42][%mdl 32768] Weighted Error Value: White=0.16 (very precise) /Black=0.16 (very precise) . Loss on time!?} 0-1

[Event "Chessable English Open-ch 2022"]
[Site "Kenilwoth"]
[Date "2022.05.19"]
[Round "2.16"]
[White "Kumar, Soham"]
[Black "Wells, Daniel J"]
[Result "1/2-1/2"]
[ECO "B30"]
[WhiteElo "1678"]
[BlackElo "2020"]
[Annotator "TA"]
[PlyCount "69"]
[EventDate "2022.05.18"]
[EventType "swiss"]
[EventCountry "ENG"]
[SourceTitle "playchess.com"]
[Source "ChessBase"]
[SourceQuality "1"]
[TimeControl "5400+30"]

{[%evp 9,69,0,14,5,9,-5,-12,-6,4,-14,2,-23,-13,-13,0,-11,-12,-27,-22,-36,0,0,-2,-32,-35,-96,-95,-86,-75,-132,-101,-146,-153,-248,-190,-191,-192,-275,-197,-189,-180,-144,-129,-184,-118,-128,-114,-195,-189,-257,-247,-242,-237,-262,-262,-259,-268,-384,-160,-163,-167,-158]} 1. e4 {[%emt 0:00:01]} c5 {[%emt 0:00:07]} 2. Nf3 {[%emt 0:00:06]} Nc6 {[%emt 0:00:05]} 3. Nc3 {[%emt 0:00:08]} g6 {[%emt 0:00:17]} 4. Bc4 {[%emt 0:00:07]} Bg7 {[%emt 0:00:36]} 5. O-O {[%emt 0:00:27]} e6 {[%emt 0:03:25]} 6. Re1 {[%emt 0:01:31][%cal Od2d4] B30: Sicilian: 2...Nc6 3 Bb5, lines without ...g6.} d6 {[%emt 0:04:09][%cal Bd7d6,Bd6d5][%mdl 32]} 7. d3 {[%emt 0:04:08]} Nge7 {[%emt 0:01:01]} 8. a3 {[%emt 0:01:22] The position is equal.} O-O {[%emt 0:01:26]} 9. Rb1 {[%emt 0:02:03]} a6 {[%emt 0:03:15]} 10. Bd2 {[%emt 0:03:10]} b5 {[%emt 0:02:51]} 11. Ba2 {[%emt 0:05:33]} d5 {[%emt 0:15:19]} 12. Qc1 {[%emt 0:04:24]} Nd4 {[%emt 0:14:22]} 13. Nxd4 {[%emt 0:00:44]} cxd4 {[%emt 0:00:08]} 14. Ne2 {[%emt 0:00:17]} dxe4 {[%emt 0:00:55]} 15. dxe4 {[%emt 0:00:10]} Bb7 {[%emt 0:00:40]} 16. Ng3 {[%emt 0:02:03]} Rc8 {[%emt 0:01:43] [#]} 17. Qd1 $146 {[%emt 0:04:59]} (17. Rd1 $15) ({Predecessor:} 17. Bg5 Qc7 18. Qd2 Nc6 19. Bh6 Rfd8 20. Rbd1 Bxh6 21. Qxh6 Qe5 22. Rd2 Na5 23. f4 {½-½ (60) Matikozian,A (2427)-Kiewra,K (2445) Orange 2015}) 17... Qc7 {[%emt 0:02:25]} 18. Rc1 {[%emt 0:01:45]} Rfd8 {[%emt 0:04:49]} 19. Qf3 {[%emt 0:02:30]} (19. Bg5 $142) 19... Nc6 $17 {[%emt 0:03:02][%cal Od4d3]} 20. Bf4 {[%emt 0:09:08]} Ne5 {[%emt 0:02:35]} 21. Bxe5 {[%emt 0:00:22]} (21. Qd1 $17) 21... Qxe5 {[%emt 0:00:10]} 22. Qd3 {[%emt 0:03:03]} a5 {[%emt 0:08:43]} 23. Qd2 {[%emt 0:03:52]} (23. Rcd1 $142) 23... Qc7 {[%emt 0:09:35]} 24. Qg5 {[%emt 0:11:21]} Be5 {[%emt 0:10:31] [#] Strongly threatening ...Bf4.} 25. Rcd1 {[%emt 0:39:46]} Qc5 {[%emt 0:02:54]} 26. b4 {[%emt 0:00:00]} (26. Rd2 $17) 26... axb4 {[%emt 0:00:29]} ({Black should play} 26... Qd6 $19 27. Bb1 axb4 28. axb4 Rc4) 27. axb4 {[%emt 0:00:00]} Qd6 {[%emt 0:00:22]} ({Of course not} 27... Qxc2 $6 28. Qxe5 Qxa2 29. Qxb5 $11) 28. Qd2 {[%emt 0:00:00]} (28. Bb3 $17) 28... Bf4 {[%emt 0:02:02] A strong pair of Bishops.} 29. Qe2 {[%emt 0:00:00]} (29. Qd3 {might work better.}) 29... Qxb4 $19 {[%emt 0:01:25]} 30. Rb1 {[%emt 0:00:00]} Qd6 {[%emt 0:02:32]} 31. Qxb5 {[%emt 0:00:00]} Rxc2 {[%emt 0:01:34] [#] Hoping for ...Bc6.} 32. Qxb7 {[%emt 0:00:00][%cal Oe4e5]} Rxa2 {[%emt 0:00:10]} 33. Rb6 {[%emt 0:00:00]} (33. e5 {was necessary.} Bxe5 34. Ne4) 33... Rb8 {[%emt 0:01:19]} (33... Qc5 $19 {is more deadly.} 34. Qc6 Qc3) 34. Rxd6 $17 {[%emt 0:00:00]} Rxb7 {[%emt 0:00:05]} 35. Rxd4 {[%emt 0:00:00] Weighted Error Value: White=0.30/Black=0.18 (very precise)} 1/2-1/2

[Event "Chessable English Open-ch 2022"]
[Site "Kenilwoth"]
[Date "2022.05.20"]
[Round "3.1"]
[White "Derakhshani, Borna"]
[Black "Wadsworth, Matthew J"]
[Result "1/2-1/2"]
[ECO "A06"]
[WhiteElo "2388"]
[BlackElo "2432"]
[Annotator "TA"]
[PlyCount "112"]
[EventDate "2022.05.18"]
[EventType "swiss"]
[EventCountry "ENG"]
[SourceTitle "playchess.com"]
[Source "ChessBase"]
[SourceQuality "1"]
[TimeControl "5400+30"]

{[%evp 9,112,12,19,14,33,11,21,14,25,0,0,-40,-30,-74,-80,-75,-79,-70,-56,-56,-67,-73,-62,-93,-90,-131,-135,-176,-165,-176,-148,-158,-176,-165,-133,-143,-167,-193,-200,-312,-130,-130,-137,-129,-135,-130,-132,-130,-122,-143,-123,-134,-96,-87,-58,-60,-24,-40,-43,-39,0,0,0,-8,0,-31,-31,-57,-58,-54,-8,-70,-67,-70,-70,-70,-70,-70,-70,-70,-70,-70,-70,-70,-70,-71,-71,-71,-70,-70,-70,-70,-70,-70,-70,-70,-70,-70,-70,-70,-70,-70,-70,-71,0]} 1. Nf3 {[%emt 0:02:49]} d5 {[%emt 0:00:22]} 2. b3 {[%emt 0:02:00]} Bg4 {[%emt 0:00:23]} 3. Bb2 {[%emt 0:00:14]} Bxf3 {[%emt 0:00:12]} 4. exf3 {[%emt 0:00:34]} e6 {[%emt 0:00:12]} 5. g3 {[%emt 0:01:20]} Nf6 {[%emt 0:03:24][%cal Bg8f6,Bf6e4,Be4d2][%mdl 32]} 6. Bg2 {[%emt 0:00:12] A06: Réti Opening: 1 Nf3 d5.} g6 {[%emt 0:00:18]} 7. f4 {[%emt 0:01:37]} Bg7 {[%emt 0:00:17]} 8. O-O {[%emt 0:00:34] The position is equal.} O-O {[%emt 0:00:31]} 9. Re1 {[%emt 0:01:16]} c5 {[%emt 0:01:09] [#]} 10. d4 $146 {[%emt 0:10:48]} ({Predecessor:} 10. d3 Nc6 11. Nd2 Rc8 12. Nf3 d4 13. h4 b5 14. a4 b4 15. Ne5 Ne7 16. Bc1 h5 17. Bd2 Nf5 18. Qf3 Nd5 19. Bh3 Bf6 20. Re2 Nde7 21. Rae1 Kg7 {½-½ (21) Nihal,S (2556)-Kuybokarov,T (2499) Abu Dhabi 2018}) 10... Ne4 {[%emt 0:09:32]} 11. Nd2 {[%emt 0:13:03]} Nxd2 $1 {[%emt 0:02:10]} 12. Qxd2 {[%emt 0:00:03]} Nc6 {[%emt 0:00:07]} 13. c3 {[%emt 0:00:45]} cxd4 {[%emt 0:01:44]} 14. cxd4 {[%emt 0:00:10]} Qb6 {[%emt 0:00:39]} 15. Rad1 {[%emt 0:00:16]} Rfc8 {[%emt 0:03:50]} 16. Bc3 {[%emt 0:02:33]} a5 {[%emt 0:01:16]} 17. g4 {[%emt 0:02:16][%cal Of4f5]} Bh6 $1 {[%emt 0:00:27][%cal Bg7h6,Bh6f8,Bf8d6][%mdl 32]} 18. h4 {[%emt 0:13:53]} Qc7 {[%emt 0:19:15]} 19. g5 {[%emt 0:00:31]} Bf8 {[%emt 0:00:04]} 20. h5 {[%emt 0:07:40] [#]} Bd6 $1 {[%emt 0:17:15] Strongly threatening ...Ne7.} ({Not} 20... gxh5 21. f5 $15) 21. f5 {[%emt 0:00:53]} Nd8 {[%emt 0:12:34]} 22. hxg6 {[%emt 0:11:01]} hxg6 {[%emt 0:01:55]} ({And not} 22... Qxc3 23. gxf7+ Nxf7 24. fxe6 $15) 23. fxe6 {[%emt 0:03:48]} Nxe6 {[%emt 0:01:52]} 24. Bxd5 {[%emt 0:00:15] [#]} (24. Rxe6 $142 fxe6 25. Qe2 Bh2+ 26. Kh1) 24... Qxc3 {[%emt 0:01:56]} (24... Nf4 $1 $19 {[%cal Rf4d5] has better winning chances.} 25. Bf3 (25. Bc4 $2 Qd7 $19) 25... Qd8) 25. Qxc3 $17 {[%emt 0:00:21]} Rxc3 {[%emt 0:00:06]} 26. Bxe6 {[%emt 0:00:04]} fxe6 {[%emt 0:00:45]} 27. Rxe6 {[%emt 0:00:03]} Rd8 {[%emt 0:06:08]} 28. Rxg6+ {[%emt 0:00:09]} Kh7 {[%emt 0:03:35]} 29. Rh6+ {[%emt 0:00:21]} Kg7 {[%emt 0:00:14][%cal Od6c5]} 30. Re1 {[%emt 0:02:27]} Rc7 {[%emt 0:02:08]} 31. Re4 {[%emt 0:11:36]} Rcd7 {[%emt 0:01:40]} 32. Kg2 {[%emt 0:00:36]} Bf8 {[%emt 0:00:55]} 33. Rb6 {[%emt 0:00:18]} Rxd4 {[%emt 0:01:32]} 34. Rxb7+ {[%emt 0:00:10]} R4d7 {[%emt 0:03:05]} (34... Kg6 $5 {[%cal Rd4e4]} 35. Re6+ Kxg5 36. Re5+ Kf4 37. Rxa5 Bb4 38. Rf7+ Ke4 $17) 35. Rxd7+ {[%emt 0:01:29]} Rxd7 $11 {[%emt 0:00:04][%mdl 4096] Endgame KRB-KR} 36. Re5 {[%emt 0:00:04]} Bb4 {[%emt 0:00:35]} 37. a3 {[%emt 0:00:13]} Bd2 {[%emt 0:00:43]} 38. b4 {[%emt 0:00:10]} axb4 {[%emt 0:00:09]} 39. axb4 {[%emt 0:00:05]} Bxb4 {[%emt 0:00:59]} (39... Rd4 $15) 40. Rb5 {[%emt 0:02:43]} ({White should try} 40. f4 $11) 40... Bd2 $15 {[%emt 0:00:24]} 41. Kg3 {[%emt 0:00:58]} Rd4 {[%emt 0:00:08]} 42. Rb7+ {[%emt 0:01:44]} Kg6 {[%emt 0:00:14]} 43. Rb6+ {[%emt 0:00:06]} Kxg5 {[%emt 0:00:04]} 44. Rb5+ {[%emt 0:00:06]} Kf6 {[%emt 0:00:44]} 45. Kg2 {[%emt 0:00:30]} Bf4 {[%emt 0:00:22]} 46. Rb3 {[%emt 0:00:26]} Kf5 {[%emt 0:00:26]} 47. Kf3 {[%emt 0:00:47]} Be5 {[%emt 0:00:10]} 48. Ra3 {[%emt 0:00:37]} Rh4 {[%emt 0:00:44] ( -> ...Rh3+)} 49. Kg2 {[%emt 0:00:12] Inhibits Rh3.} Rh2+ {[%emt 0:01:39]} 50. Kg1 {[%emt 0:00:05]} Bf4 {[%emt 0:00:39]} 51. Rf3 {[%emt 0:00:40][%cal Of3f4]} Rh8 {[%emt 0:00:07]} 52. Ra3 {[%emt 0:00:31]} Kg4 {[%emt 0:00:47]} 53. Kg2 {[%emt 0:00:11]} Rd8 {[%emt 0:00:14]} 54. Rb3 {[%emt 0:00:37]} Rd2 {[%emt 0:00:50]} 55. Ra3 {[%emt 0:00:14]} Be5 {[%emt 0:00:27]} 56. Rf3 {[%emt 0:00:22]} Bf4 {[%emt 0:00:47] Black had all chances to win.  Weighted Error Value: White=0.14 (very precise) /Black=0.10 (very precise)} (56... Bd4 $17) 1/2-1/2